bitfinex/quotes_ETHUSD_20241203
["timestamp","ask_amount","ask_price","bid_price","bid_amount"]
[1733193093107,0.578,3640.4,3640.3,2.74702]
[1733193098413,0.578,3640.4,3640.3,3.58942]
[1733193099930,0.028,3640.4,3640.3,3.58942]
[1733193100298,0.028,3640.4,3640.3,2.74702]
[1733193109507,3.15721127,3641.3,3641.2,2.74634]
[1733193109705,2.81764661,3641.3,3641.2,2.74634]
[1733193110522,3.37306467,3641.3,3641.2,2.74634]
[1733193110842,3.92306467,3641.3,3641.2,2.74634]
[1733193111266,3.95106467,3641.3,3641.2,2.74634]
[1733193112189,4.40697114,3641.3,3641.2,2.74634]
[1733193114529,0.1834501,3641.3,3641.2,3.7124396]
[1733193114815,0.1834501,3641.3,3641.2,3.8124396]
[1733193114816,1e-07,3641.3,3641.2,3.8124396]
[1733193121376,0.75,3642.8,3642.7,2.9452096]
[1733193123238,0.778,3642.8,3642.7,2.9452096]
[1733193123790,1e-05,3642.8,3642.7,3.8292096]
[1733193125598,0.7634501,3644.9,3644.5,2.9438596]
[1733193125905,0.34256466,3644.8,3644.5,2.9438596]
[1733193126113,0.34256466,3644.8,3644.6,2.74378]
[1733193126605,0.87945675,3644.8,3644.6,2.74378]
[1733193127178,0.53689209,3644.8,3644.6,2.74378]
[1733193127400,0.56489209,3644.8,3644.6,2.74378]
[1733193127640,0.56489209,3644.8,3644.5,0.1999996]
[1733193127808,0.56489209,3644.8,3644.5,2.9438496]
[1733193128009,0.56489209,3644.8,3644.5,0.1999996]
[1733193129613,0.55,3644.7,3644.2,0.1999996]
[1733193129901,0.18783422,3644.6,3644.4,0.1999996]
[1733193130061,0.18783422,3644.6,3643.9,0.7908]
[1733193130062,0.18783422,3644.6,3644.3,0.1]
[1733193130265,0.55,3644.5,3644.2,0.1999996]
[1733193130505,0.578,3644.5,3644.2,0.1999996]
[1733193131629,0.578,3644.5,3644.3,0.1]
[1733193131847,0.578,3644.5,3644.2,0.1999996]
[1733193132158,0.64149124,3644.4,3643.8,0.1999996]
[1733193132338,0.55,3644.1,3643.2,0.1999996]
[1733193132507,0.55,3643.9,3643.1,0.1999996]
[1733193132805,0.55,3643.7,3643.1,0.1999996]
[1733193133215,0.55,3643.7,3643.1,0.2999996]
[1733193133451,0.578,3643.7,3643.4,0.1999996]
[1733193134668,0.55537093,3643.6,3643.4,0.1999996]
[1733193137075,1.10537093,3643.6,3643.4,0.1999996]
[1733193137283,0.16833709,3643.5,3643.4,0.1999996]
[1733193137574,0.16833709,3643.5,3642.7,0.8103]
[1733193137575,0.55,3643.4,3642.7,0.1999996]
[1733193137730,0.55,3643.2,3642.5,0.1999996]
[1733193137933,0.55,3643.0,3642.2,0.1999996]
[1733193138180,0.55,3643.0,3641.6,0.7848]
[1733193138181,0.608,3642.7,3641.8,0.1999996]
[1733193138477,0.608,3642.7,3641.7,0.1999996]
[1733193138478,1.14029524,3642.6,3641.7,0.1999996]
[1733193138632,0.55,3642.4,3641.7,0.1999996]
[1733193139060,0.50825737,3642.4,3641.5,0.1999996]
[1733193139262,0.608,3642.2,3641.5,0.1999996]
[1733193139813,0.608,3642.2,3641.6,2.74604]
[1733193139814,0.56224347,3641.9,3641.6,2.74604]
[1733193140363,0.59024347,3641.9,3641.6,2.74604]
[1733193140583,0.59024347,3641.9,3641.5,0.1999996]
[1733193141061,0.55,3641.8,3641.1,0.2999996]
[1733193141261,0.55,3641.6,3640.9,2.9465496]
[1733193141496,0.55,3641.6,3640.7,3.0467096]
[1733193141497,0.72817347,3641.6,3640.7,3.0467096]
[1733193141710,0.75617347,3641.6,3640.7,0.1999996]
[1733193141998,0.75617347,3641.6,3641.3,2.74626]
[1733193142459,0.75617347,3641.6,3641.1,0.1]
[1733193142678,0.75617347,3641.6,3640.7,0.1]
[1733193142862,0.608,3641.3,3640.5,2.84686]
[1733193143082,0.75838924,3641.2,3640.5,2.9468596]
[1733193143377,0.752898,3641.2,3640.5,0.2999996]
[1733193143582,0.752898,3641.2,3640.8,2.74663]
[1733193143780,0.578,3641.2,3641.0,0.1]
[1733193143962,0.578,3641.2,3640.9,0.1999996]
[1733193143963,0.028,3641.2,3640.9,0.1999996]
[1733193144166,0.028,3641.2,3641.1,2.74642]
[1733193144961,0.028,3641.2,3640.8,2.84657]
[1733193145165,0.028,3641.2,3640.6,2.74678]
[1733193145166,1.158,3641.1,3640.6,2.74678]
[1733193145403,0.55,3641.0,3640.7,2.74671]
[1733193146394,0.55,3641.0,3640.5,0.2999996]
[1733193146395,0.55,3641.0,3640.9,2.74657]
[1733193146598,0.55,3641.0,3640.7,2.74671]
[1733193146783,0.55,3641.0,3640.5,0.1999996]
[1733193146991,0.55,3641.0,3640.8,2.74664]
[1733193147573,0.578,3641.0,3640.8,2.74664]
[1733193147778,0.578,3641.0,3640.5,2.7468]
[1733193147978,0.578,3641.0,3640.6,2.74674]
[1733193148612,0.578,3641.0,3640.6,2.74679]
[1733193150228,0.03349124,3640.9,3640.1,0.1]
[1733193150537,1.158,3640.8,3640.1,0.1]
[1733193150828,0.5455665,3640.5,3640.4,2.74693]
[1733193151592,0.608,3643.0,3641.6,2.74602]
[1733193151830,0.608,3642.6,3641.1,2.74642]
[1733193152037,0.56063254,3641.7,3641.4,2.74619]
[1733193152205,1.16863254,3641.7,3641.4,2.74619]
[1733193152806,1.16863254,3641.7,3641.1,2.9464196]
[1733193153010,1.16863254,3641.7,3641.5,2.74611]
[1733193153541,0.55,3641.6,3641.5,2.74611]
[1733193153743,0.72466325,3641.6,3641.5,2.74611]
[1733193154243,0.72466325,3641.6,3640.8,0.1]
[1733193154244,0.72466325,3641.6,3640.8,2.84658]
[1733193154394,0.55,3641.4,3641.2,2.74633]
[1733193155240,0.03349124,3641.5,3641.2,2.74633]
[1733193155241,0.55,3641.5,3641.2,2.74633]
[1733193155442,0.55,3641.5,3641.4,2.74619]
[1733193155743,0.73932958,3641.5,3641.4,2.74619]
[1733193157740,0.76732958,3641.5,3641.4,2.74619]
[1733193158236,0.76732958,3641.5,3641.2,2.74633]
[1733193158440,0.76732958,3641.5,3641.4,2.74619]
[1733193158747,0.76732958,3641.5,3641.3,2.7462]
[1733193158959,0.76732958,3641.5,3641.3,1.29039472]
[1733193159103,0.19359621,3641.4,3641.0,0.1999996]
[1733193159300,0.19359621,3641.4,3640.9,2.74652]
[1733193159301,0.55,3641.3,3640.8,0.1]
[1733193159601,0.55,3641.3,3641.2,2.74634]
[1733193160211,0.55,3641.1,3640.1,3.49887]
[1733193160401,0.55,3641.1,3639.9,0.1]
[1733193160402,0.55,3640.9,3640.3,2.74696]
[1733193160625,0.608,3640.8,3640.3,2.74696]
[1733193160942,0.55,3640.7,3640.3,2.74696]
[1733193161397,0.55,3640.7,3639.8,2.74734]
[1733193161616,0.55,3640.7,3639.8,2.74739]
[1733193161617,0.55,3640.3,3639.8,2.74739]
[1733193161813,0.55,3640.0,3639.9,2.74732]
[1733193162222,0.028,3640.0,3639.9,2.74732]
[1733193168055,0.028,3640.0,3639.2,0.8025]
[1733193168369,0.55,3639.9,3639.5,2.74762]
[1733193168543,0.028,3640.0,3639.5,2.74756]
[1733193169153,0.028,3640.0,3639.4,2.7477]
[1733193169481,0.028,3640.0,3639.2,0.8025]
[1733193169482,0.578,3640.0,3639.6,2.74753]
[1733193169689,0.028,3640.0,3639.6,2.74753]
[1733193170069,0.54056432,3639.7,3639.6,2.74753]
[1733193170280,1.09056432,3639.7,3639.6,2.74753]
[1733193175286,0.55,3639.6,3639.4,0.1]
[1733193175456,0.55,3639.6,3639.5,2.74762]
[1733193175657,0.578,3639.6,3639.5,2.74762]
[1733193185791,0.028,3639.6,3639.5,4.124162]
[1733193186035,0.25663109,3640.6,3639.8,0.1]
[1733193186219,0.03349124,3640.5,3639.8,0.1]
[1733193186542,1.48752957,3640.4,3639.4,0.1]
[1733193186692,0.29021809,3640.3,3639.6,2.7475]
[1733193186897,0.25672685,3640.2,3639.6,2.7475]
[1733193187096,0.25672685,3640.1,3639.4,0.1]
[1733193187330,0.55,3639.9,3639.7,2.74744]
[1733193187856,0.55,3640.3,3639.7,2.74744]
[1733193187998,0.55,3640.1,3639.5,2.74756]
[1733193188200,0.578,3639.9,3639.2,0.1]
[1733193188522,0.55,3639.7,3639.3,2.74774]
[1733193189719,0.578,3639.7,3639.3,2.74774]
[1733193189922,0.578,3639.7,3638.9,0.8462]
[1733193189923,0.578,3639.7,3639.5,2.74762]
[1733193190639,0.578,3639.7,3639.6,2.74755]
[1733193190850,0.028,3639.7,3639.6,3.56385]
[1733193192547,0.7071,3639.7,3639.6,2.74755]
[1733193192713,1.2571,3639.7,3639.6,2.74755]
[1733193192894,1.43696839,3639.7,3639.6,2.74755]
[1733193193923,0.75786839,3639.7,3639.6,2.74755]
[1733193194122,0.028,3639.7,3639.6,2.74755]
[1733193196942,0.028,3639.7,3639.2,0.1]
[1733193197102,1.2308,3639.6,3639.0,2.74793]
[1733193197303,1.2308,3639.6,3639.1,2.7479]
[1733193197840,1.2308,3639.6,3639.2,2.74785]
[1733193198545,0.55,3639.2,3639.0,2.848]
[1733193198902,0.578,3639.2,3639.1,2.74793]
[1733193199762,0.028,3639.2,3639.1,2.74793]
[1733193200040,0.028,3639.2,3639.1,4.095335]
[1733193200249,0.028,3639.2,3639.1,3.53573]
[1733193202252,0.6808,3640.8,3640.4,2.74693]
[1733193202424,0.25752164,3640.7,3640.6,2.74679]
[1733193202807,0.6808,3640.8,3640.6,2.74679]
[1733193203016,0.6808,3640.8,3640.0,0.9523]
[1733193203216,0.53846048,3640.7,3640.6,2.74677]
[1733193204139,1.11646048,3640.7,3640.6,2.74677]
[1733193204341,0.56646048,3640.7,3640.6,2.74677]
[1733193204668,0.56646048,3640.7,3640.6,3.59907]
[1733193204832,0.56646048,3640.7,3640.6,2.74677]
[1733193205562,1.11646048,3640.7,3640.6,2.74677]
[1733193209719,1.2308,3640.5,3640.4,2.74695]
[1733193209951,0.72972605,3640.5,3640.4,2.74695]
[1733193210659,0.75772605,3640.5,3640.4,2.74695]
[1733193212651,0.55,3640.4,3640.1,2.7471]
[1733193212818,0.55,3640.4,3640.2,2.74706]
[1733193213763,0.55,3640.4,3639.8,2.84733]
[1733193213764,0.55,3640.4,3640.3,2.74702]
[1733193217062,0.028,3640.5,3640.4,3.55115]
[1733193217969,0.028,3640.5,3640.4,3.65115]
[1733193223145,0.028,3640.5,3640.4,2.84695]
[1733193229256,0.578,3640.5,3640.4,2.84695]
[1733193229743,0.028,3640.5,3640.4,2.84695]
[1733193231038,0.578,3640.5,3640.4,2.84695]
[1733193231239,0.028,3640.5,3640.4,2.84695]
[1733193231465,0.028,3640.5,3640.1,0.02703186]
[1733193231680,0.6864,3640.4,3640.1,0.02703186]
[1733193231880,0.55,3640.3,3640.1,0.02703186]
[1733193232046,0.58349124,3640.2,3640.1,0.02703186]
[1733193232386,1.57224112,3640.2,3640.1,0.02703186]
[1733193232888,4.61027462,3640.2,3640.1,0.02703186]
[1733193233095,1.86317462,3640.2,3640.1,0.02703186]
[1733193233274,1.5273335,3640.2,3640.1,0.02703186]
[1733193233859,1.49384226,3640.2,3640.1,0.02703186]
[1733193234246,1.2364,3640.2,3640.1,0.02703186]
[1733193236048,1.79281557,3640.2,3640.1,0.02703186]
[1733193236845,0.55641557,3640.2,3640.1,0.02703186]
[1733193238050,1.10641557,3640.2,3640.1,0.02703186]
[1733193243300,1.79281557,3640.2,3640.1,0.02703186]
[1733193243461,1.97824625,3640.2,3640.1,0.02703186]
[1733193244477,1.29184625,3640.2,3640.1,0.02703186]
[1733193244668,0.55641557,3640.2,3640.1,2.77420186]
[1733193244888,0.58441557,3640.2,3640.1,2.77420186]
[1733193245416,0.58441557,3640.2,3640.1,2.87420186]
[1733193246344,0.58441557,3640.2,3640.1,3.68260186]
[1733193247359,0.028,3640.2,3640.1,6.68260186]
[1733193250412,0.028,3640.2,3640.1,3.68260186]
[1733193253463,0.028,3640.2,3640.1,2.87420186]
[1733193253802,0.028,3640.2,3640.1,0.12703186]
[1733193253961,0.028,3640.2,3640.1,0.02703186]
[1733193254692,3.23039376,3640.2,3640.1,0.02703186]
[1733193255003,3.61691314,3640.2,3640.1,0.02703186]
[1733193256583,3.76954178,3640.2,3640.1,0.02703186]
[1733193258307,4.40434178,3640.2,3640.1,0.02703186]
[1733193258682,1.75194802,3640.2,3640.1,0.02703186]
[1733193260988,4.53253926,3640.2,3640.1,0.02703186]
[1733193261177,0.6348,3639.9,3639.1,0.1]
[1733193261378,2.65239376,3639.2,3639.1,0.1]
[1733193261580,0.55,3639.1,3638.9,0.8621]
[1733193261808,0.55,3639.1,3638.7,0.1]
[1733193262106,3.20239376,3638.8,3638.7,0.1]
[1733193262484,3.23039376,3638.8,3638.7,0.1]
[1733193262815,1.1848,3638.7,3637.9,0.9302]
[1733193263021,2.65239376,3638.0,3637.9,0.9302]
[1733193263165,3.20239376,3638.0,3637.9,0.9302]
[1733193265086,3.20239376,3638.0,3637.9,0.1]
[1733193265483,3.23039376,3638.0,3637.9,0.1]
[1733193266400,0.55,3637.9,3637.8,2.74891]
[1733193266772,0.55,3637.9,3637.8,0.1]
[1733193266973,0.55,3637.9,3637.6,3.63645]
[1733193267308,0.55,3637.9,3637.8,0.1]
[1733193267887,0.55,3637.9,3637.7,2.74898]
[1733193268299,0.93651938,3637.9,3637.6,0.1]
[1733193268472,1.47739752,3637.9,3637.6,2.74906]
[1733193268691,1.47739752,3637.9,3637.8,0.1]
[1733193269416,1.47739752,3637.9,3637.8,2.84891]
[1733193269713,1.09087814,3637.9,3637.8,2.84891]
[1733193270713,0.55,3637.9,3637.8,2.84891]
[1733193271167,0.55,3637.9,3637.8,3.66331]
[1733193275126,0.55,3637.9,3637.8,2.84891]
[1733193276724,0.578,3638.0,3637.9,3.58083]
[1733193276918,0.55632286,3638.7,3638.6,2.8483]
[1733193277073,2.65239376,3639.2,3639.1,2.74793]
[1733193277409,2.65239376,3639.2,3638.9,2.74806]
[1733193277575,3.21229338,3639.2,3638.9,2.74806]
[1733193277775,3.21229338,3639.2,3639.0,2.748]
[1733193278823,0.55,3639.1,3639.0,2.748]
[1733193284256,0.55,3639.1,3639.0,2.748]
[1733193285517,0.55,3639.1,3638.8,2.74813]
[1733193285715,3.20239376,3638.9,3638.8,2.74813]
[1733193286024,3.23039376,3638.9,3638.8,2.74813]
[1733193286860,0.55,3638.8,3638.6,0.1]
[1733193287017,0.55,3638.8,3638.7,2.74822]
[1733193287633,0.55,3638.8,3638.6,0.1]
[1733193287832,0.58349124,3638.8,3638.6,0.1]
[1733193288038,0.55,3638.8,3638.6,2.84827]
[1733193288520,0.55,3638.8,3638.7,0.1]
[1733193289539,0.55,3638.8,3638.6,2.74827]
[1733193289743,1.1865,3638.8,3638.6,2.74827]
[1733193289956,1.1865,3638.8,3638.4,2.74843]
[1733193290129,1.1865,3638.8,3638.4,2.84843]
[1733193290558,1.1865,3638.8,3638.6,0.1]
[1733193291534,0.028,3638.9,3638.7,2.84823]
[1733193291745,0.028,3638.9,3638.8,3.54725]
[1733193293832,1e-05,3638.9,3638.8,3.54725]
[1733193294040,2.65239376,3639.9,3639.8,0.8991]
[1733193294330,2.65239376,3639.9,3639.8,3.6465]
[1733193294826,0.6365,3639.8,3638.5,0.2747]
[1733193295028,2.65239376,3639.9,3638.5,0.2747]
[1733193295029,2.65239376,3638.6,3638.5,2.74838]
[1733193295427,3.20239376,3638.6,3638.5,2.74838]
[1733193296935,3.23039376,3638.6,3638.5,2.74838]
[1733193302843,3.23039376,3638.6,3638.5,3.55468]
[1733193304544,0.578,3638.6,3638.5,3.55468]
[1733193304728,1e-05,3638.6,3638.5,6.58215708]
[1733193304901,1e-05,3638.6,3638.5,6.82938]
[1733193305700,1.19773532,3638.6,3638.5,6.82938]
[1733193306036,1.19773532,3638.6,3638.5,6.55468]
[1733193306037,1.74773532,3638.6,3638.5,6.55468]
[1733193306648,1.74773532,3638.6,3638.5,3.55468]
[1733193306802,2.04228138,3638.6,3638.5,2.74838]
[1733193307008,1.74773532,3638.6,3638.5,2.74838]
[1733193307729,3.20482529,3638.6,3638.5,2.74838]
[1733193308821,0.55,3638.5,3638.3,2.74853]
[1733193310778,0.55,3638.5,3637.8,2.74889]
[1733193310779,0.55,3638.5,3637.8,0.2747]
[1733193310933,0.55,3638.0,3637.5,0.2747]
[1733193311251,0.55,3637.6,3637.5,2.74914]
[1733193312016,0.55,3637.6,3637.3,2.74927]
[1733193313224,0.55,3637.4,3637.1,2.74942]
[1733193313418,2.65481529,3637.2,3637.1,2.74942]
[1733193313665,3.20481529,3637.2,3637.1,2.74942]
[1733193315552,0.55,3637.3,3637.2,3.59906]
[1733193315780,0.57293677,3637.4,3637.2,3.8497]
[1733193315781,0.028,3637.4,3637.2,3.8497]
[1733193315948,0.028,3637.4,3637.3,5.74929]
[1733193316334,2.65481529,3637.9,3637.8,2.74891]
[1733193317150,2.65481529,3637.9,3637.8,3.57431]
[1733193317350,2.65481529,3638.3,3637.9,3.0]
[1733193317570,2.65481529,3638.3,3638.2,2.74861]
[1733193317931,3.21037542,3638.3,3638.2,2.74861]
[1733193318174,3.23837542,3638.3,3638.2,2.74861]
[1733193319182,3.78837542,3638.3,3638.2,2.74861]
[1733193321281,4.23331296,3638.3,3638.2,2.74861]
[1733193322746,3.78837542,3638.3,3638.2,2.74861]
[1733193323790,0.55,3638.2,3638.0,2.74875]
[1733193324299,0.578,3638.2,3637.7,3.0]
[1733193324464,0.578,3638.2,3637.9,2.74882]
[1733193324796,3.20481529,3638.0,3637.9,2.74882]
[1733193324983,3.89381529,3638.0,3637.9,2.74882]
[1733193325162,3.23281529,3638.0,3637.9,2.74882]
[1733193325964,0.028,3638.0,3637.9,4.081308]
[1733193326298,0.028,3638.0,3637.9,7.081308]
[1733193327099,1e-05,3638.0,3637.9,7.081308]
[1733193327259,1e-05,3638.0,3637.9,7.356008]
[1733193329920,1e-05,3638.0,3637.9,6.53152]
[1733193330201,1e-05,3638.0,3637.9,5.74882]
[1733193330402,1e-05,3638.0,3637.9,6.59550538]
[1733193330706,1e-05,3638.0,3637.9,6.84272]
[1733193332005,1e-05,3638.0,3637.9,6.93692987]
[1733193334168,1e-05,3638.0,3637.9,7.13692987]
[1733193339511,1e-05,3638.0,3637.9,6.93692987]
[1733193340771,1e-05,3638.0,3637.9,7.13692987]
[1733193344214,1e-05,3638.0,3637.9,6.93692987]
[1733193347477,1e-05,3638.0,3637.9,7.13692987]
[1733193348521,1e-05,3638.0,3637.9,6.93692987]
[1733193349545,1e-05,3638.0,3637.9,7.13692987]
[1733193349818,1e-05,3638.0,3637.9,6.93692987]
[1733193349992,1e-05,3638.0,3637.9,7.13692987]
[1733193350680,1e-05,3638.0,3637.9,6.93692987]
[1733193351419,1e-05,3638.0,3637.9,2.84302987]
[1733193353104,1e-05,3638.0,3637.9,5.84302987]
[1733193356281,3.81282529,3638.0,3637.9,2.84302987]
[1733193356624,3.20482529,3638.0,3637.9,2.84302987]
[1733193359849,3.76500838,3638.0,3637.9,2.84302987]
[1733193360836,4.20230922,3638.0,3637.9,2.84302987]
[1733193362312,4.81030922,3638.0,3637.9,0.09420987]
[1733193362510,7.55906922,3638.0,3637.9,0.09420987]
[1733193362740,0.55,3637.7,3636.2,0.2749]
[1733193363037,0.55,3637.9,3636.0,0.8165]
[1733193363038,3.81281529,3636.9,3636.8,2.74964]
[1733193363235,3.81281529,3636.9,3636.8,2.82479349]
[1733193363601,3.20481529,3636.9,3636.8,2.82479349]
[1733193364103,0.55,3637.0,3636.9,2.74959]
[1733193364566,0.578,3637.0,3636.9,2.82472645]
[1733193366068,1.01652448,3637.0,3636.9,2.82472645]
[1733193367136,0.028,3637.0,3636.9,6.62942645]
[1733193367338,2.65481529,3637.6,3637.5,2.74914]
[1733193367560,1.14621158,3637.9,3637.8,2.74891]
[1733193368065,2.87742852,3640.0,3638.0,2.74876]
[1733193368066,3.26281529,3638.4,3638.0,2.74876]
[1733193368232,3.26281529,3638.4,3638.3,2.74853]
[1733193368435,3.58909682,3638.4,3638.3,2.82118415]
[1733193368933,3.58909682,3638.4,3638.3,0.07265415]
[1733193369332,3.58909682,3638.4,3638.1,2.74863]
[1733193369565,3.58909682,3638.4,3638.3,0.0698692]
[1733193369729,0.55,3638.3,3638.2,0.06988623]
[1733193369931,0.96390968,3638.3,3638.2,2.74861]
[1733193370130,0.96390968,3638.3,3638.0,2.74872]
[1733193370350,0.96390968,3638.3,3638.2,0.06987606]
[1733193370553,0.96390968,3638.3,3638.1,0.06989309]
[1733193370832,0.99190968,3638.3,3638.2,0.06987606]
[1733193371231,0.99190968,3638.3,3638.1,2.74867]
[1733193371465,1.03158564,3638.2,3638.1,2.74867]
[1733193371867,0.55,3638.1,3637.7,3.0]
[1733193372112,0.55,3638.1,3638.0,2.74876]
[1733193372422,0.50958564,3638.2,3638.0,2.74876]
[1733193372423,0.028,3638.2,3638.0,10.0]
[1733193372715,0.028,3638.2,3638.1,2.74868]
[1733193373123,3.23281529,3638.2,3638.1,2.81860459]
[1733193373719,0.028,3638.2,3638.1,2.81860459]
[1733193374296,0.028,3638.2,3638.1,5.8460874]
[1733193374485,0.028,3638.2,3638.1,5.81860459]
[1733193381185,2.68281529,3638.2,3638.1,0.06323396]
[1733193381428,0.55,3637.9,3636.5,0.02748979]
[1733193381625,2.65481529,3637.2,3637.1,2.74944]
[1733193381813,3.20481529,3637.2,3637.1,2.74944]
[1733193382396,2.65481529,3637.6,3637.5,2.74914]
[1733193382628,3.20481529,3637.6,3637.5,2.74914]
[1733193384697,3.23281529,3637.6,3637.5,2.74914]
[1733193385322,3.55609682,3637.6,3637.5,2.74914]
[1733193385531,3.23281529,3637.6,3637.5,2.74914]
[1733193388903,3.23281529,3637.6,3637.5,2.80913967]
[1733193391206,3.23281529,3637.6,3637.5,0.05999967]
[1733193391428,0.55,3637.5,3637.2,2.74935]
[1733193391632,0.55,3637.3,3637.2,2.74935]
[1733193392157,0.55,3637.3,3636.9,2.74956]
[1733193392459,0.55,3636.9,3636.8,2.7496]
[1733193392817,0.578,3636.9,3636.8,2.7496]
[1733193393427,0.028,3636.9,3636.8,3.5491]
[1733193394119,0.55,3637.3,3637.2,2.74936]
[1733193396014,0.578,3637.3,3637.2,2.74936]
[1733193403147,0.578,3637.3,3637.2,2.80974098]
[1733193407476,2.65481529,3637.8,3637.7,2.74898]
[1733193407631,2.65481529,3638.2,3638.1,2.74868]
[1733193407959,3.19569049,3638.2,3638.1,2.80890768]
[1733193408556,2.65481529,3638.2,3638.1,2.80890768]
[1733193408923,2.65481529,3638.6,3638.1,2.80890768]
[1733193409137,0.9905,3639.3,3638.1,2.80890768]
[1733193409138,2.65481529,3639.0,3638.9,2.74808]
[1733193409364,3.07340682,3639.0,3638.9,2.74808]
[1733193409522,0.9905,3639.3,3639.2,2.74785]
[1733193409747,2.65481529,3639.3,3639.2,2.74785]
[1733193409946,2.65481529,3639.3,3639.2,2.80741296]
[1733193411453,3.20481529,3639.3,3639.2,2.80741296]
[1733193415100,4.18921529,3639.3,3639.2,2.80741296]
[1733193415392,4.60813682,3639.3,3639.2,0.05956296]
[1733193415757,0.55,3639.2,3639.1,2.74793]
[1733193416400,0.55,3639.4,3639.3,2.74778]
[1733193418140,0.55,3639.4,3639.3,2.80590932]
[1733193418695,2.65481529,3639.5,3639.4,2.7477]
[1733193418899,0.53914894,3639.8,3639.4,2.8058123]
[1733193419140,1.08914894,3639.8,3639.7,2.74747]
[1733193419497,0.55,3639.8,3639.7,2.80553126]
[1733193421055,2.65481529,3639.9,3639.8,2.7474]
[1733193421537,2.65481529,3639.9,3639.8,2.80544424]
[1733193422049,2.65481529,3640.3,3640.2,3.022]
[1733193422202,2.65481529,3640.3,3640.2,2.7471]
[1733193422398,2.65481529,3640.3,3640.2,2.80445891]
[1733193423233,3.20481529,3640.3,3640.2,2.80445891]
[1733193424437,4.15511529,3640.3,3640.2,0.05735891]
[1733193424637,4.47559682,3640.3,3640.2,0.05735891]
[1733193424873,0.55,3640.2,3640.0,10.0]
[1733193425367,0.55,3639.8,3638.5,1.38502382]
[1733193425530,0.947,3639.8,3639.0,2.74795]
[1733193425734,0.6997,3639.7,3639.1,2.74793]
[1733193426233,0.55,3639.2,3639.1,2.74793]
[1733193428539,0.55,3639.2,3638.5,3.9704]
[1733193428761,0.55,3639.2,3637.9,0.9772]
[1733193428762,2.65481529,3638.8,3637.9,0.9772]
[1733193428961,2.65481529,3638.8,3638.5,2.74835]
[1733193429467,0.55,3638.7,3638.5,2.74835]
[1733193429662,0.55,3638.7,3638.6,2.7483]
[1733193429874,0.55,3638.7,3638.4,2.74842]
[1733193430172,0.87048153,3638.7,3638.4,2.74842]
[1733193430326,0.87048153,3638.7,3638.0,2.74868]
[1733193430327,0.03349124,3638.6,3638.0,2.74868]
[1733193430527,0.55,3638.2,3637.8,2.74883]
[1733193433282,0.55,3638.2,3637.9,0.05614263]
[1733193434390,0.58349124,3638.2,3637.9,0.05614263]
[1733193434549,0.55,3638.0,3637.9,0.05614263]
[1733193434748,0.55,3638.0,3637.0,1.1562]
[1733193434999,0.55,3637.8,3637.7,2.74891]
[1733193435156,0.55393889,3638.3,3637.7,2.74891]
[1733193435490,0.55,3638.2,3638.1,2.74868]
[1733193435851,0.55,3638.3,3638.2,2.74861]
[1733193436073,2.65481529,3638.6,3637.9,2.74878]
[1733193436074,0.55,3638.5,3638.3,2.74852]
[1733193437283,1.1482,3638.7,3638.0,0.02748537]
[1733193437490,1.1482,3638.7,3637.7,1.1562]
[1733193437719,2.65481529,3638.9,3638.8,2.74815]
[1733193438200,1.1482,3639.0,3638.9,2.74808]
[1733193438376,1.1482,3639.6,3638.4,0.0274802]
[1733193438579,0.53958269,3639.5,3638.5,3.0]
[1733193438792,0.53958269,3639.5,3639.2,2.74783]
[1733193438986,0.4342598,3639.4,3639.2,2.74783]
[1733193440120,0.55,3639.3,3639.2,3.92823]
[1733193440332,0.55,3639.3,3639.2,2.74783]
[1733193440877,0.55,3639.5,3639.4,2.7477]
[1733193442422,2.65481529,3640.0,3639.9,2.74732]
[1733193442779,0.37885153,3640.0,3639.9,2.74732]
[1733193443130,0.55686955,3640.3,3640.2,2.7471]
[1733193444888,2.65481529,3640.4,3639.6,2.74748]
[1733193445220,2.65481529,3640.4,3640.3,2.74702]
[1733193445423,0.55,3640.3,3639.6,2.74755]
[1733193445585,0.37551943,3640.2,3640.0,2.74723]
[1733193445777,0.55,3640.1,3640.0,2.74723]
[1733193446181,0.55,3640.1,3639.5,1.1684]
[1733193446425,0.55,3639.9,3639.8,2.7474]
[1733193447126,2.65481529,3640.4,3639.8,3.827]
[1733193447326,2.65481529,3640.4,3640.3,2.74702]
[1733193448179,2.65481529,3640.4,3640.3,2.8020079]
[1733193448383,3.20481529,3640.4,3640.3,2.8020079]
[1733193448629,3.58025771,3640.4,3640.3,2.8020079]
[1733193448917,3.58025771,3640.4,3640.3,0.0549879]
[1733193449118,0.55,3640.3,3640.1,2.74717]
[1733193449320,0.55,3640.3,3640.2,0.05486795]
[1733193449482,0.55,3640.3,3640.2,2.7471]
[1733193449829,0.96298666,3640.3,3640.2,0.05494911]
[1733193450193,0.9964779,3640.3,3639.9,2.74726]
[1733193450534,3.20481529,3640.0,3639.9,2.74726]
[1733193450833,0.41298666,3640.3,3639.9,2.74726]
[1733193450834,0.55,3640.2,3639.9,2.74726]
[1733193451032,0.55,3640.2,3640.1,2.74717]
[1733193451240,0.55,3640.3,3640.2,2.7471]
[1733193451529,0.55,3640.6,3640.5,2.7468]
[1733193451735,1.03467039,3640.6,3640.5,2.7468]
[1733193451888,0.54298865,3640.7,3640.1,1.1127]
[1733193452086,0.54298865,3640.7,3640.6,2.74679]
[1733193452284,0.54298865,3640.7,3640.6,5.74679]
[1733193452590,1.0772,3641.3,3641.1,2.74635]
[1733193452790,1.0772,3641.3,3640.4,5.74688]
[1733193452988,1.0772,3641.3,3640.1,1.1127]
[1733193452989,2.65481529,3641.1,3640.5,3.0]
[1733193453201,2.65481529,3641.1,3640.5,5.74686]